fUST/lending_fUST_20260124
["ID","MTS","AMOUNT","RATE_DAILY","PERIOD"]
[403137545,1769188232480,-500.0,0.00012131,2]
[403137546,1769188232490,-591.0,0.00012131,2]
[403137547,1769188232501,-207.36391295,0.00012162,2]
[403137548,1769188232510,-300.0,0.00012354,2]
[403137549,1769188232521,-300.0,0.00012354,2]
[403137551,1769188232530,-461.39965453,0.00012354,2]
[403137553,1769188232543,-738.60034547,0.00012354,2]
[403137555,1769188232552,-757.32134758,0.00012355,2]
[403137557,1769188232565,-9242.67865242,0.00012355,2]
[403137559,1769188232575,-162.01,0.00012402,2]
[403137561,1769188232585,-300.0,0.000126,2]
[403137563,1769188232595,-300.0,0.000126,2]
[403137565,1769188232604,-300.0,0.000126,2]
[403137567,1769188232614,-300.0,0.000126,2]
[403137568,1769188232624,-300.0,0.000126,2]
[403137570,1769188232633,-300.0,0.000126,2]
[403137571,1769188232643,-300.0,0.000126,2]
[403137572,1769188232653,-300.0,0.000126,2]
[403137573,1769188232663,-300.0,0.000126,2]
[403137574,1769188232672,-156.20183162,0.00013186,2]
[403137576,1769188232682,-500.0,0.00013273,2]
[403137578,1769188232692,-216.01,0.00013299,2]
[403137580,1769188232701,-221.50926336,0.00013357,2]
[403137582,1769188232710,-300.0,0.00013359,2]
[403137584,1769188232720,-5638.2686001,0.0001336,2]
[403137586,1769188232729,-245.20720059,0.00013456,2]
[403137588,1769188232738,-500.0,0.00013456,2]
[403137590,1769188232748,-500.0,0.00013456,2]
[403137592,1769188232757,-500.0,0.00013456,2]
[403137594,1769188232767,-500.0,0.00013456,2]
[403137596,1769188232776,-276.40811914,0.00013456,2]
[403137598,1769188232785,-452.29255742,0.00013456,2]
[403137600,1769188232795,-500.0,0.00013456,2]
[403137602,1769188232808,-557.3486788,0.00013456,2]
[403137604,1769188232817,-500.0,0.00013456,2]
[403137606,1769188232827,-500.0,0.00013456,2]
[403137608,1769188232837,-500.0,0.00013456,2]
[403137610,1769188232847,-500.0,0.00013456,2]
[403137612,1769188232857,-500.0,0.00013456,2]
[403137614,1769188232866,-500.0,0.00013456,2]
[403137616,1769188232877,-500.0,0.00013456,2]
[403137618,1769188232886,-500.0,0.00013456,2]
[403137620,1769188232896,-203.64783001,0.00013456,2]
[403137622,1769188232905,-500.0,0.00013456,2]
[403137624,1769188232915,-500.0,0.00013456,2]
[403137626,1769188232924,-500.0,0.00013456,2]
[403137628,1769188232934,-500.0,0.00013456,2]
[403137630,1769188232943,-500.0,0.00013456,2]
[403137632,1769188232953,-500.0,0.00013456,2]
[403137634,1769188232962,-271.66926432,0.00013456,2]
[403137636,1769188232971,-500.0,0.00013456,2]
[403137638,1769188232980,-500.0,0.00013456,2]
[403137640,1769188232990,-500.0,0.00013456,2]
[403137642,1769188232999,-500.0,0.00013456,2]
[403137644,1769188233008,-500.0,0.00013456,2]
[403137646,1769188233018,-500.0,0.00013456,2]
[403137648,1769188233027,-500.0,0.00013456,2]
[403137650,1769188233037,-500.0,0.00013456,2]
[403137652,1769188233047,-500.0,0.00013456,2]
[403137654,1769188233056,-500.0,0.00013456,2]
[403137656,1769188233066,-500.0,0.00013456,2]
[403137658,1769188233076,-500.0,0.00013456,2]
[403137660,1769188233086,-300.0,0.00013456,2]
[403137662,1769188233096,-34935.3141057,0.00013457,2]
[403137665,1769188233117,-314.83912239,0.00013457,2]
[403137668,1769188233129,-1919.4402395,0.00013457,2]
[403137670,1769188233140,-504.07830695,0.00013457,2]
[403137928,1769188238577,-300.0,0.000126,2]
[403137929,1769188238587,-300.0,0.000126,2]
[403137930,1769188238597,-300.0,0.000126,2]
[403137931,1769188238607,-300.0,0.000126,2]
[403137932,1769188238617,-285.67731641,0.000126,2]
[403137933,1769188238628,-14.32268359,0.000126,2]
[403137934,1769188238638,-300.0,0.000126,2]
[403137935,1769188238648,-230.46827428,0.00013457,2]
[403137936,1769188238682,-450.0,0.00013457,2]
[403137940,1769188240782,-612.62060751,0.00013457,2]
[403137971,1769188243765,-435.0,0.00013457,2]
[403137973,1769188244388,-10598.23934367,0.00013457,2]
[403137974,1769188244398,-207.01802829,0.00013458,2]
[403137975,1769188244407,-500.0,0.0001346,2]
[403137976,1769188244417,-420.0,0.00013558,2]
[403137977,1769188244427,-1680.0,0.0001359,2]
[403137978,1769188244437,-500.0,0.00013699,2]
[403137979,1769188244448,-500.0,0.00013699,2]
[403137980,1769188244458,-500.0,0.00013699,2]
[403137981,1769188244467,-192.06856669,0.00013699,2]
[403137982,1769188244476,-500.0,0.00013734,2]
[403137983,1769188244486,-1000.0,0.00013821,2]
[403137984,1769188244496,-200.0,0.00013969,2]
[403137985,1769188244505,-162.26278883,0.00013969,2]
[403137986,1769188244515,-500.0,0.00013969,2]
[403137987,1769188244525,-200.0,0.00014093,2]
[403137988,1769188244535,-200.0,0.00014093,2]
[403137989,1769188244544,-205.91439709,0.00014093,2]
[403137990,1769188244554,-150.57817943,0.00014093,2]
[403137991,1769188244563,-500.0,0.00014106,2]
[403137992,1769188244573,-244.68941728,0.00014162,2]
[403137993,1769188244582,-202.26928942,0.0001423,2]
[403137994,1769188244592,-500.0,0.00014243,2]
[403137995,1769188244602,-1000.0,0.00014247,2]
[403137996,1769188244611,-952.20987354,0.00014247,2]
[403137997,1769188244621,-1000.0,0.00014247,2]
[403137998,1769188244631,-270.01,0.00014249,2]
[403137999,1769188244641,-572.25,0.00014268,2]
[403138000,1769188244651,-200.0,0.00014367,2]
[403138001,1769188244660,-500.0,0.00014367,2]
[403138002,1769188244670,-500.0,0.00014367,2]
[403138003,1769188244680,-500.0,0.00014367,2]
[403138004,1769188244689,-1500.0,0.00014368,2]
[403138005,1769188244699,-250.0,0.0001438,2]
[403138006,1769188244708,-500.0,0.0001438,2]
[403138007,1769188244717,-300.0,0.00014475,2]
[403138008,1769188244727,-265.79429204,0.00014504,2]
[403138009,1769188244737,-500.0,0.00014517,2]
[403138010,1769188244746,-155.0,0.00014628,2]
[403138011,1769188244756,-500.0,0.00014654,2]
[403138012,1769188244871,-600.0,0.00014667,2]
[403138013,1769188244882,-500.0,0.00014791,2]
[403138014,1769188244892,-1000.0,0.00014795,2]
[403138015,1769188244902,-1500.0,0.00014795,2]
[403138016,1769188244913,-587.0,0.00014878,2]
[403138017,1769188244923,-1103.1388801,0.00014916,2]
[403138018,1769188244933,-500.0,0.00014928,2]
[403138019,1769188244943,-1656.0,0.00014949,2]
[403138020,1769188244953,-483.24269527,0.00015065,2]
[403138021,1769188244963,-488.59283817,0.00015088,2]
[403138022,1769188244975,-500.0,0.00015088,2]
[403138023,1769188244985,-500.0,0.00015088,2]
[403138024,1769188244996,-324.02,0.00015199,2]
[403138025,1769188245008,-3000.0,0.00016,2]
[403138026,1769188245021,-618.0,0.00016,6]
[403138027,1769188245032,-3000.0,0.0001601,2]
[403138028,1769188245043,-3000.0,0.0001602,2]
[403138029,1769188245055,-3000.0,0.0001603,2]
[403138030,1769188245064,-3000.0,0.0001604,2]
[403138031,1769188245074,-458.30715293,0.00016049,2]
[403138032,1769188245083,-500.0,0.00016049,2]
[403138033,1769188245094,-3000.0,0.0001605,2]
[403138034,1769188245103,-3000.0,0.0001606,2]
[403138035,1769188245113,-3000.0,0.0001607,2]
[403138036,1769188245123,-3000.0,0.0001608,2]
[403138037,1769188245132,-3000.0,0.0001609,2]
[403138038,1769188245141,-3000.0,0.000161,2]
[403138039,1769188245151,-3000.0,0.0001611,2]
[403138040,1769188245160,-500.0,0.00016119,2]
[403138041,1769188245169,-4489.363781,0.0001612,2]
[403138042,1769188245178,-720.0,0.00016133,2]
[403138043,1769188245189,-378.02,0.00016148,2]
[403138044,1769188245198,-282.01492161,0.00016162,2]
[403138045,1769188245207,-221.50926335,0.00016212,2]
[403138046,1769188245217,-823.0,0.00016327,2]
[403138047,1769188245226,-500.76031757,0.00016329,2]
[403138048,1769188245236,-175.1,0.00016438,2]
[403138049,1769188245245,-500.0,0.00016438,2]
[403138050,1769188245256,-202.60658399,0.00016438,2]
[403138051,1769188245266,-200.34883371,0.00016473,2]
[403138052,1769188245276,-150.57282133,0.0001707,7]
[403138053,1769188245285,-432.02,0.00017098,2]
[403138054,1769188245294,-165.10591259,0.00017212,2]
[403138055,1769188245304,-660.42365035,0.00017212,2]
[403138056,1769188245315,-1485.95321329,0.00017212,2]
[403138057,1769188245325,-162.18131845,0.00017212,2]
[403138058,1769188245334,-648.72527379,0.00017212,2]
[403138059,1769188245343,-1041.66666667,0.00017611,2]
[403138060,1769188245354,-864.0,0.00017747,2]
[403138061,1769188245364,-150.30156277,0.00017808,2]
[403138062,1769188245374,-175.1,0.00017825,2]
[403138063,1769188245384,-1152.0,0.00017917,2]
[403138064,1769188245394,-486.02,0.00018048,2]
[403138065,1769188245404,-2594.90109517,0.00018118,2]
[403138066,1769188245414,-319.34042594,0.00018162,2]
[403138067,1769188245423,-500.0,0.000188,2]
[403138068,1769188245433,-1860.3549767,0.00018801,2]
[403138069,1769188245444,-281.4441827,0.00018801,2]
[403138070,1769188245454,-3430.8197063,0.00018801,2]
[403138071,1769188245463,-220.5654659,0.00018801,2]
[403138072,1769188245473,-301.23271271,0.00018803,2]
[403138073,1769188245483,-542.21888287,0.00018803,2]
[403138074,1769188245493,-172.5825727,0.0001896,2]
[403138075,1769188245503,-310.64863087,0.0001896,2]
[403138076,1769188245513,-540.03,0.00018998,2]
[403138077,1769188245524,-221.50926335,0.00019068,2]
[403138078,1769188245534,-1551.30670913,0.00019083,2]
[403138079,1769188245544,-206.86631326,0.00019125,2]
[403138080,1769188245555,-827.46525303,0.00019125,2]
[403138081,1769188245565,-1861.79681931,0.00019125,2]
[403138082,1769188245576,-1269.5363,0.00019178,2]
[403138083,1769188245587,-200.0,0.00019178,2]
[403138084,1769188245599,-454.57,0.00019178,2]
[403138085,1769188245611,-307.27,0.00019178,2]
[403138086,1769188245622,-1000.0,0.00019178,2]
[403138087,1769188245633,-175.1,0.00019213,2]
[403138088,1769188245644,-1659.61,0.00019452,2]
[403138089,1769188245655,-1000.0,0.00019521,2]
[403138090,1769188245665,-1269.5363,0.00019589,3]
[403138091,1769188245676,-633.0,0.00019661,2]
[403138092,1769188245686,-1207.34642588,0.000199,2]
[403138093,1769188245697,-1819.4,0.0001999,3]
[403138094,1769188245708,-500.0,0.00019999,2]
[403138095,1769188245718,-303.68547993,0.00019999,2]
[403138096,1769188245729,-102922.6366726,0.0002,2]
[403138147,1769188247201,-1459.63186604,0.00017212,2]
[403138148,1769188247212,-469.5609849,0.0002,2]
[403138149,1769188247224,-3109.08944009,0.0002,2]
[403138150,1769188247237,-676.43199997,0.0002,2]
[403138151,1769188247257,-411.0,0.0002,2]
[403138230,1769189149437,1358.72,0.00012,2]
[403138238,1769189275816,3684.24381102,0.00012,5]
[403138239,1769189321273,372.04918873,0.0001,2]
[403138240,1769189325840,150.92576983,0.00011,2]
[403138274,1769189431673,-165.60265351,0.00012895,2]
[403138276,1769189431682,-603.0,0.00012895,2]
[403138278,1769189431691,-205.3176286,0.00013091,2]
[403138280,1769189431700,-213.500671,0.00013699,2]
[403138281,1769189431711,-500.0,0.00013699,2]
[403138283,1769189431720,-582.02320001,0.00013699,2]
[403138285,1769189431730,-500.0,0.00013699,2]
[403138287,1769189431739,-1000.0,0.00013802,2]
[403138289,1769189431748,-1437.789999,0.00014062,2]
[403138291,1769189431758,-165.4699289,0.00014373,2]
[403138293,1769189431767,-231.6228758,0.00014623,2]
[403138295,1769189431776,-189.29420334,0.00014623,2]
[403138297,1769189431785,-178.08023639,0.00014623,2]
[403138299,1769189431795,-494.69917305,0.00014623,2]
[403138301,1769189431803,-320.3094304,0.00014623,2]
[403138303,1769189431815,-179.6905696,0.00014623,2]
[403138305,1769189431824,-500.0,0.00014623,2]
[403138307,1769189431833,-237.92080742,0.00014623,2]
[403138309,1769189431842,-300.0,0.00014915,2]
[403138311,1769189431851,-300.0,0.00014915,2]
[403138313,1769189431861,-300.0,0.00014915,2]
[403138315,1769189431870,-300.0,0.00014915,2]
[403138317,1769189431882,-300.0,0.00014915,2]
[403138319,1769189431892,-300.0,0.00014915,2]
[403138321,1769189431902,-300.0,0.00014915,2]
[403138323,1769189431912,-300.0,0.00014915,2]
[403138325,1769189431921,-300.0,0.00014915,2]
[403138327,1769189431931,-300.0,0.00014915,2]
[403138329,1769189431941,-300.0,0.00014915,2]
[403138331,1769189431951,-300.0,0.00014915,2]
[403138333,1769189431960,-300.0,0.00014915,2]
[403138335,1769189431970,-300.0,0.00014915,2]
[403138337,1769189431979,-300.0,0.00014915,2]
[403138339,1769189431989,-3360.08862299,0.00015,2]
[403138341,1769189432000,-720.0,0.00015,2]
[403138343,1769189432015,-1077.32915382,0.00015,2]
[403138345,1769189432025,-465.60265351,0.00015,2]
[403138538,1769189437827,-3238.74439699,0.00015,2]
[403138539,1769189437839,-57939.80367845,0.00015,2]
[403138566,1769189443476,-38794.08949597,0.00015,2]
[403138567,1769189443485,-242.27480175,0.00015091,2]
[403138568,1769189443494,-600.0,0.00015212,2]
[403138569,1769189443504,-5000.0,0.00015686,2]
[403138570,1769189443513,-151.0,0.00015687,2]
[403138571,1769189443523,-10000.0,0.00015687,2]
[403138572,1769189443532,-10000.0,0.00015687,2]
[403138573,1769189443542,-10000.0,0.00015687,2]
[403138574,1769189443551,-4719.07,0.00015687,2]
[403138575,1769189443560,-2565.9670669,0.00016365,2]
[403138576,1769189443569,-491.82460879,0.00016438,2]
[403138577,1769189443578,-296.100715,0.00016438,2]
[403138578,1769189443588,-22480.7245923,0.00016438,2]
[403138579,1769189443597,-185.09,0.0001644,2]
[403138580,1769189443606,-297.84587203,0.00016648,2]
[403138581,1769189443615,-720.0,0.00016734,2]
[403138582,1769189443624,-160.0,0.00016808,2]
[403138583,1769189443633,-1041.66666667,0.00016895,2]
[403138584,1769189443644,-541.43191332,0.00016919,2]
[403138585,1769189443654,-161.37,0.00016919,2]
[403138586,1769189443664,-475.0,0.00017,2]
[403138587,1769189443673,-475.0,0.00017,2]
[403138588,1769189443683,-34334.88496914,0.00017,2]
[403138589,1769189443692,-151.0,0.00017,2]
[403138590,1769189443701,-279.2319749,0.00017091,2]
[403138591,1769189443711,-467.20921102,0.00017646,7]
[403138592,1769189443720,-528.97426872,0.00017786,2]
[403138593,1769189443729,-181.54,0.00017859,2]
[403138594,1769189443738,-5314.30301868,0.00018307,2]
[403138602,1769189446000,-300.0,0.00015299,2]
[403138603,1769189446010,-300.0,0.00015299,2]
[403138604,1769189446020,-300.0,0.00015299,2]
[403138605,1769189446030,-300.0,0.00015299,2]
[403138606,1769189446039,-300.0,0.00015299,2]
[403138607,1769189446048,-281.76692147,0.00015299,2]
[403138608,1769189446108,-18.23307853,0.00015299,2]
[403138609,1769189446117,-317.32692138,0.00018307,2]
[403138614,1769189468977,-638.15019026,0.00015199,2]
[403138615,1769189469006,-300.0,0.00015299,2]
[403138616,1769189469037,-300.0,0.00015299,2]
[403138617,1769189469067,-300.0,0.00015299,2]
[403138618,1769189469097,-300.0,0.00015299,2]
[403138619,1769189469129,-300.0,0.00015299,2]
[403138620,1769189469162,-300.0,0.00015299,2]
[403138621,1769189469323,-300.0,0.00015299,2]
[403138622,1769189469350,-300.0,0.00015299,2]
[403138623,1769189469378,-300.0,0.00015299,2]
[403138624,1769189473127,299.776583,0.00015687,2]
[403138625,1769189474557,299.776583,0.00015687,2]
[403138626,1769189476074,299.776583,0.00015687,2]
[403138627,1769189478620,299.776583,0.00015687,2]
[403138628,1769189480078,408.84108244,0.00013699,2]
[403138629,1769189484813,-91.15891756,0.00013699,2]
[403138630,1769189484842,-155.0,0.00015333,2]
[403138631,1769189484868,-377.452357,0.00016438,2]
[403138632,1769189484895,-377.452357,0.00016438,2]
[403138633,1769189484925,-377.452357,0.00016438,2]
[403138634,1769189484953,-203.66585614,0.00016438,2]
[403138639,1769189890878,-5000.0,0.00013291,2]
[403138640,1769189890902,-214.01892959,0.00013493,2]
[403138641,1769189890925,-428.2283012,0.00013562,2]
[403138642,1769189890948,-300.0,0.0001383,2]
[403138643,1769189890975,-300.0,0.0001383,2]
[403138644,1769189891001,-293.91992727,0.00013831,2]
[403138645,1769189891026,-300.0,0.00013831,2]
[403138646,1769189891050,-300.0,0.00013831,2]
[403138647,1769189891074,-1200.0,0.00013831,2]
[403138648,1769189891099,-162.13601306,0.00013831,2]
[403138649,1769189891126,-300.0,0.00013832,2]
[403138650,1769189891150,-300.0,0.00013832,2]
[403138651,1769189891174,-300.0,0.00013832,2]
[403138652,1769189891198,-300.0,0.00013832,2]
[403138653,1769189891222,-300.0,0.00013832,2]
[403138654,1769189891246,-300.0,0.00013832,2]
[403138655,1769189891270,-300.0,0.00013832,2]
[403138656,1769189891296,-300.0,0.00013832,2]
[403138657,1769189891321,-300.0,0.00013832,2]
[403138658,1769189891346,-300.0,0.00013832,2]
[403138659,1769189891372,-300.0,0.00013832,2]
[403138660,1769189891398,-300.0,0.00013832,2]
[403138661,1769189891421,-300.0,0.00013832,2]
[403138662,1769189891445,-300.0,0.00013832,2]
[403138663,1769189891468,-300.0,0.00013832,2]
[403138664,1769189891492,-50000.0,0.00013832,2]
[403138665,1769189894219,466.92032339,0.00014,2]
[403138672,1769190107261,661.5937353,0.0001397,2]
[403138835,1769190631902,-171.24405273,0.00014366,2]
[403138836,1769190631912,-633.0,0.0001481,2]
[403138837,1769190631921,-209.738551,0.00014919,2]
[403138838,1769190631931,-178.3,0.00015029,2]
[403138839,1769190631941,-155.0,0.00015337,2]
[403138840,1769190631950,-158.22090241,0.00015587,2]
[403138841,1769190631960,-10000.0,0.00015687,2]
[403138842,1769190631969,-3541.92560696,0.00015687,2]
[403138843,1769190631981,-6458.07439304,0.00015687,2]
[403138844,1769190631991,-10000.0,0.00015687,2]
[403138845,1769190632000,-4719.07,0.00015687,2]
[403138846,1769190632010,-23245.56371469,0.00015968,2]
[403138847,1769190632020,-208.02,0.00015968,2]
[403138848,1769190632029,-300.0,0.00016,2]
[403138849,1769190632038,-300.0,0.00016,2]
[403138850,1769190632048,-300.0,0.00016,2]
[403138851,1769190632057,-300.0,0.00016,2]
[403138852,1769190632067,-300.0,0.00016,2]
[403138853,1769190632076,-300.0,0.00016,2]
[403138854,1769190632086,-300.0,0.00016,2]
[403138855,1769190632095,-300.0,0.00016,2]
[403138856,1769190632105,-300.0,0.00016,2]
[403138857,1769190632115,-300.0,0.00016,2]
[403138858,1769190632124,-300.0,0.00016,2]
[403138859,1769190632133,-300.0,0.00016,2]
[403138860,1769190632143,-300.0,0.00016,2]
[403138861,1769190632152,-300.0,0.00016,2]
[403138862,1769190632162,-300.0,0.00016,2]
[403138863,1769190632172,-168.205343,0.00016051,2]
[403138864,1769190632182,-661.5937353,0.00016134,2]
[403138865,1769190632192,-376.5072364,0.00016411,2]
[403138866,1769190632201,-491.82460879,0.00016438,2]
[403138867,1769190632211,-500.0,0.00016438,2]
[403138868,1769190632221,-500.0,0.00016438,2]
[403138869,1769190632230,-500.0,0.00016438,2]
[403138870,1769190632240,-500.0,0.00016438,2]
[403138871,1769190632250,-500.0,0.00016438,2]
[403138872,1769190632259,-500.0,0.00016438,2]
[403138873,1769190632269,-500.0,0.00016438,2]
[403138874,1769190632279,-500.0,0.00016438,2]
[403138875,1769190632288,-500.0,0.00016438,2]
[403138876,1769190632298,-500.0,0.00016438,2]
[403138877,1769190632308,-500.0,0.00016438,2]
[403138878,1769190632318,-500.0,0.00016438,2]
[403138879,1769190632327,-500.0,0.00016438,2]
[403138880,1769190632337,-500.0,0.00016438,2]
[403138881,1769190632346,-185.09,0.0001644,2]
[403138882,1769190632356,-1041.66666667,0.00016797,2]
[403138883,1769190632365,-600.10823627,0.000169,30]
[403138884,1769190632375,-237.74,0.00016907,2]
[403138885,1769190632385,-247.49149018,0.00016919,2]
[403138886,1769190632394,-541.43191332,0.00017339,2]
[403138887,1769190632404,-283.42207071,0.00017339,2]
[403138888,1769190632414,-600.0,0.00017339,2]
[403138889,1769190632423,-250.0,0.00017476,2]
[403138890,1769190632433,-410.80667682,0.00017832,2]
[403138891,1769190632442,-469.49334494,0.00017832,2]
[403138892,1769190632452,-267.45,0.00017846,2]
[403138893,1769190632461,-2033.93413649,0.00018,2]
[403138929,1769190638048,-1374.81438009,0.00018,2]
[403138931,1769190638061,-91.25148342,0.00018,2]
[403138933,1769190638070,-217.55132012,0.00018031,2]
[403138935,1769190638080,-45.18334452,0.00018299,2]
[403138938,1769190638092,-616.41039078,0.00018299,2]
[403138940,1769190638102,-5938.55673152,0.00018307,2]
[403138942,1769190638113,-307.77177812,0.00018307,2]
[403138944,1769190638122,-869.33507518,0.00018413,2]
[403138946,1769190638131,-158.22090239,0.00018548,2]
[403138948,1769190638140,-457.92372268,0.00018591,2]
[403138950,1769190638150,-297.17,0.00018786,2]
[403138952,1769190638159,-500.0,0.00018904,2]
[403138954,1769190638169,-285.24442936,0.00018919,2]
[403138956,1769190638178,-45.00689123,0.00019041,2]
[403139150,1769190640082,-495.85280433,0.00019041,2]
[403139151,1769190640092,-720.0,0.00019073,2]
[403139152,1769190640101,-376.5072364,0.00019076,2]
[403139153,1769190640111,-166.347938,0.00019078,2]
[403139154,1769190640120,-210.11232016,0.00019078,2]
[403139450,1769190644619,-355.46660686,0.00019078,2]
[403139451,1769190644630,-1632.63,0.00019078,2]
[403139478,1769190646172,-6237.11498842,0.00019078,2]
[403139479,1769190646251,-1799.776583,0.00019078,2]
[403139480,1769190646271,-4044.40435005,0.00019078,2]
[403139481,1769190646384,-453.0,0.00019078,2]
[403139502,1769190663763,517.78186213,0.00013273,2]
[403139503,1769190670144,500.0,0.00013273,2]
[403139504,1769190670193,1000.0,0.00013821,2]
[403139505,1769190674595,1000.0,0.00013821,2]
[403139506,1769190674646,500.0,0.00013273,2]
[403139507,1769190681525,500.0,0.00013699,2]
[403139512,1769190730298,1000.0,0.00013821,2]
[403139513,1769190730429,500.0,0.00013273,2]
[403139514,1769190733055,300.0,0.00013673,2]
[403139515,1769190735208,500.0,0.00013699,2]
[403139516,1769190789799,500.0,0.00013273,2]
[403139517,1769190853268,210.88541207,0.00013273,2]
[403139518,1769190903787,500.0,0.00013699,2]
[403139519,1769190907309,500.0,0.00013699,2]
[403139795,1769191199480,165.26,0.00013325,2]
[403139838,1769191269426,-272.81849569,0.00014276,2]
[403139839,1769191269452,-351.18150431,0.00014276,2]
[403139841,1769191298674,-77.9294341,0.00014711,2]
[403139842,1769191298699,-116.95962749,0.00014711,2]
[403139845,1769191341664,174.79,0.00012259,2]
[403139846,1769191342066,233.05,0.00013201,2]
[403139861,1769191419951,170.67,0.00012345,2]
[403139862,1769191420350,227.56,0.00013295,2]
[403139863,1769191492658,178.37,0.0001234,2]
[403139864,1769191493068,237.83,0.00013289,2]
[403139865,1769191504013,500.0,0.00013273,2]
[403139866,1769191504046,1089.59566266,0.00013821,2]
[403139867,1769191569189,173.94,0.00012418,2]
[403139868,1769191569570,231.92,0.00013373,2]
[403139869,1769191642699,158.44,0.00012407,2]
[403139870,1769191643110,211.26,0.00013361,2]
[403139871,1769191718065,155.78,0.00012412,2]
[403139872,1769191718452,207.71,0.00013366,2]
[403139874,1769191749020,1000.0,0.00013821,2]
[403139875,1769191749073,500.0,0.00013273,2]
[403139876,1769191757620,500.0,0.00013699,2]
[403139877,1769191762660,500.0,0.00013699,2]
[403139878,1769191765876,698.789576,0.00014,2]
[403139879,1769191767108,500.0,0.00013273,2]
[403139880,1769191767163,1000.0,0.00013821,2]
[403139881,1769191771412,500.0,0.00013699,2]
[403139882,1769191791377,189.2,0.00013396,2]
[403139912,1769191831998,-537.34813356,0.00014246,2]
[403139930,1769191832151,-662.65186644,0.00014246,2]
[403139932,1769191832161,-1000.0,0.00014247,2]
[403139934,1769191832170,-1000.0,0.00014247,2]
[403139936,1769191832179,-1000.0,0.00014247,2]
[403139938,1769191832188,-190.99128036,0.00014284,2]
[403139939,1769191832197,-236.5,0.00014353,2]
[403139941,1769191832206,-300.0,0.00014367,2]
[403139943,1769191832216,-300.0,0.00014367,2]
[403139944,1769191832225,-978.03673504,0.00014368,2]
[403139945,1769191832234,-1500.0,0.00014368,2]
[403139946,1769191832243,-500.0,0.00014795,2]
[403139947,1769191832253,-500.0,0.00014795,2]
[403139948,1769191832262,-500.0,0.00014795,2]
[403139949,1769191832272,-229.30163114,0.00014916,2]
[403139950,1769191832282,-300.0,0.00015089,2]
[403139951,1769191832292,-300.0,0.00015089,2]
[403139952,1769191832301,-300.0,0.00015089,2]
[403139953,1769191832311,-300.0,0.00015089,2]
[403139954,1769191832320,-300.0,0.00015089,2]
[403139955,1769191832330,-300.0,0.00015089,2]
[403139956,1769191832339,-300.0,0.00015089,2]
[403139957,1769191832348,-300.0,0.00015089,2]
[403139958,1769191832357,-300.0,0.00015089,2]
[403139959,1769191832367,-300.0,0.00015089,2]
[403139960,1769191832376,-300.0,0.00015089,2]
[403139961,1769191832386,-300.0,0.00015089,2]
[403139962,1769191832396,-300.0,0.00015089,2]
[403139963,1769191832405,-300.0,0.00015089,2]
[403139964,1769191832415,-300.0,0.00015089,2]
[403139965,1769191832424,-283.8,0.00015309,2]
[403139966,1769191832433,-1680.0,0.0001567,2]
[403139967,1769191832442,-500.0,0.00015687,2]
[403139968,1769191832452,-1829.86319582,0.00015787,2]
[403139969,1769191832461,-16025.2155483,0.00015984,2]
[403139970,1769191832470,-288.0993389,0.00015999,2]
[403139971,1769191832479,-600.0,0.00016,2]
[403139972,1769191832489,-331.1,0.00016266,2]